[Event "Late-Titled-Tuesday-Blitz-April-16-2024"]
[Site "Chess.com"]
[Date "2024.04.16"]
[Round "3"]
[White "szachmistrz2500"]
[Black "simaopdias"]
[Result "1-0"]
[WhiteElo "2456"]
[BlackElo "2257"]
[TimeControl "180+1"]
[EndTime "14:28:08 PDT"]
[Termination "szachmistrz2500 won by resignation"]

1. e4 {[%clk 0:03:00.9]} 1... c5 {[%clk 0:02:59.8]} 2. Nf3 {[%clk 0:03:00.4]}
2... g6 {[%clk 0:03:00.7]} 3. d4 {[%clk 0:02:56.3]} 3... cxd4 {[%clk 0:03:01.6]}
4. Nxd4 {[%clk 0:02:56.6]} 4... Nc6 {[%clk 0:03:01.8]} 5. c4 {[%clk 0:02:56.8]}
5... Bg7 {[%clk 0:03:02.5]} 6. Nc2 {[%clk 0:02:57]} 6... Nf6 {[%clk 0:03:02.2]}
7. Nc3 {[%clk 0:02:57.5]} 7... O-O {[%clk 0:03:02.5]} 8. Be2 {[%clk 0:02:57.6]}
8... d6 {[%clk 0:03:03]} 9. Be3 {[%clk 0:02:54.9]} 9... Bd7 {[%clk 0:03:03.1]}
10. O-O {[%clk 0:02:52.5]} 10... Re8 {[%clk 0:03:03.7]} 11. Qd2 {[%clk
0:02:52.4]} 11... Qc8 {[%clk 0:03:00.4]} 12. f3 {[%clk 0:02:51.8]} 12... a5
{[%clk 0:03:00.5]} 13. Rac1 {[%clk 0:02:49.6]} 13... Ne5 {[%clk 0:02:56.3]} 14.
b3 {[%clk 0:02:45.2]} 14... Bc6 {[%clk 0:02:55.3]} 15. Nd5 {[%clk 0:02:41.1]}
15... Ned7 {[%clk 0:02:53]} 16. Rfd1 {[%clk 0:02:36.5]} 16... Nc5 {[%clk
0:02:45.3]} 17. Nd4 {[%clk 0:02:26.1]} 17... Bxd5 {[%clk 0:02:42.7]} 18. cxd5
{[%clk 0:02:21.2]} 18... Qb8 {[%clk 0:02:40.8]} 19. Nb5 {[%clk 0:02:17.9]} 19...
Rc8 {[%clk 0:02:38.8]} 20. Bc4 {[%clk 0:02:10.8]} 20... Nfd7 {[%clk 0:02:33.7]}
21. Bd4 {[%clk 0:02:08.9]} 21... Bxd4+ {[%clk 0:02:32.1]} 22. Qxd4 {[%clk
0:02:08.1]} 22... Nb6 {[%clk 0:02:25.1]} 23. Be2 {[%clk 0:02:04.9]} 23... Nbd7
{[%clk 0:02:24.8]} 24. f4 {[%clk 0:02:04.3]} 24... Nf8 {[%clk 0:02:03.1]} 25. e5
{[%clk 0:02:00.6]} 25... b6 {[%clk 0:02:03.2]} 26. Rc3 {[%clk 0:01:55.4]} 26...
Ncd7 {[%clk 0:02:02.9]} 27. exd6 {[%clk 0:01:47.4]} 27... Rxc3 {[%clk
0:02:02.8]} 28. Qxc3 {[%clk 0:01:38]} 28... exd6 {[%clk 0:02:01.5]} 29. Qc6
{[%clk 0:01:37.6]} 29... Nc5 {[%clk 0:01:50.7]} 30. Nxd6 {[%clk 0:01:34.1]}
30... Nfd7 {[%clk 0:01:41.7]} 31. Bg4 {[%clk 0:01:30.4]} 31... f5 {[%clk
0:01:41.1]} 32. Bf3 {[%clk 0:01:26.2]} 32... Qf8 {[%clk 0:01:40.3]} 33. Nc4
{[%clk 0:01:15.8]} 33... Rc8 {[%clk 0:01:33.8]} 34. Qb5 {[%clk 0:01:14.6]} 34...
Qf6 {[%clk 0:01:27.5]} 35. a3 {[%clk 0:00:58.4]} 35... Qc3 {[%clk 0:01:24.6]}
36. Nxb6 {[%clk 0:00:49.2]} 36... Nxb6 {[%clk 0:01:11.6]} 37. Qxb6 {[%clk
0:00:47.8]} 37... Qxb3 {[%clk 0:00:54.6]} 38. Qxb3 {[%clk 0:00:44.2]} 38... Nxb3
{[%clk 0:00:55.5]} 39. d6 {[%clk 0:00:44.8]} 39... Kf8 {[%clk 0:00:44.9]} 40. d7
{[%clk 0:00:41.1]} 40... Rd8 {[%clk 0:00:45]} 41. Bc6 {[%clk 0:00:34.3]} 41...
Nc5 {[%clk 0:00:42.7]} 42. Rd5 {[%clk 0:00:31.2]} 42... Ne6 {[%clk 0:00:39.5]}
43. Rxa5 {[%clk 0:00:29.7]} 43... Nxf4 {[%clk 0:00:38.2]} 44. Re5 {[%clk
0:00:27.7]} 1-0

[Event "Late-Titled-Tuesday-Blitz-April-16-2024"]
[Site "Chess.com"]
[Date "2024.04.16"]
[Round "3"]
[White "dasatcu90"]
[Black "IPAchess"]
[Result "0-1"]
[WhiteElo "2165"]
[BlackElo "2384"]
[TimeControl "180+1"]
[EndTime "14:28:09 PDT"]
[Termination "IPAchess won by resignation"]

1. d4 {[%clk 0:03:00.9]} 1... d5 {[%clk 0:02:59.3]} 2. Nf3 {[%clk 0:03:00.8]}
2... Nf6 {[%clk 0:02:59]} 3. e3 {[%clk 0:03:00.9]} 3... e6 {[%clk 0:02:57.1]} 4.
Bd3 {[%clk 0:03:00.5]} 4... b6 {[%clk 0:02:57.5]} 5. Nbd2 {[%clk 0:02:58.8]}
5... Bb7 {[%clk 0:02:58.1]} 6. Ne5 {[%clk 0:02:58.9]} 6... Nbd7 {[%clk
0:02:57.7]} 7. f4 {[%clk 0:02:55.8]} 7... Bd6 {[%clk 0:02:57.6]} 8. Qf3 {[%clk
0:02:55.1]} 8... c5 {[%clk 0:02:54.5]} 9. c3 {[%clk 0:02:54.7]} 9... Rc8 {[%clk
0:02:53]} 10. O-O {[%clk 0:02:53.5]} 10... Qe7 {[%clk 0:02:46.6]} 11. Rf2 {[%clk
0:02:51.7]} 11... a6 {[%clk 0:02:39.9]} 12. a4 {[%clk 0:02:50]} 12... Nf8 {[%clk
0:02:34.8]} 13. g4 {[%clk 0:02:41.4]} 13... Ng6 {[%clk 0:02:32.8]} 14. g5 {[%clk
0:02:33.2]} 14... Nd7 {[%clk 0:02:28]} 15. Qg3 {[%clk 0:01:56.8]} 15... cxd4
{[%clk 0:02:13.6]} 16. exd4 {[%clk 0:01:56.5]} 16... f5 {[%clk 0:01:57.6]} 17.
Nxg6 {[%clk 0:01:48.1]} 17... hxg6 {[%clk 0:01:56]} 18. Nf1 {[%clk 0:01:45.7]}
18... Nb8 {[%clk 0:01:37.9]} 19. Bd2 {[%clk 0:01:43.7]} 19... Nc6 {[%clk
0:01:37.7]} 20. Re1 {[%clk 0:01:41.7]} 20... Kf7 {[%clk 0:01:38.2]} 21. Rfe2
{[%clk 0:01:29.7]} 21... Nd8 {[%clk 0:01:38.4]} 22. Ne3 {[%clk 0:01:15]} 22...
Rb8 {[%clk 0:01:24.6]} 23. Bxf5 {[%clk 0:00:43.5]} 23... gxf5 {[%clk 0:01:21]}
24. g6+ {[%clk 0:00:44.4]} 24... Kg8 {[%clk 0:01:07.5]} 25. Nxf5 {[%clk
0:00:44.6]} 25... Qf8 {[%clk 0:01:03.5]} 26. Nxd6 {[%clk 0:00:37.2]} 26... Qxd6
{[%clk 0:01:01.8]} 27. Qg4 {[%clk 0:00:35.9]} 27... Bc8 {[%clk 0:00:57.7]} 28.
Re5 {[%clk 0:00:31.7]} 28... Nc6 {[%clk 0:00:55]} 29. Rh5 {[%clk 0:00:31.5]}
29... Ne7 {[%clk 0:00:23.8]} 30. Rxh8+ {[%clk 0:00:30.4]} 30... Kxh8 {[%clk
0:00:24.7]} 31. Qh5+ {[%clk 0:00:30.9]} 31... Kg8 {[%clk 0:00:25.4]} 32. Qh7+
{[%clk 0:00:30.4]} 32... Kf8 {[%clk 0:00:26]} 33. f5 {[%clk 0:00:28.1]} 33...
exf5 {[%clk 0:00:19]} 34. Bh6 {[%clk 0:00:18.6]} 34... Qxg6+ {[%clk 0:00:18.1]}
35. Qxg6 {[%clk 0:00:16.2]} 35... Nxg6 {[%clk 0:00:19]} 36. Bf4 {[%clk
0:00:15.3]} 36... Nxf4 {[%clk 0:00:18.6]} 37. Re5 {[%clk 0:00:09.7]} 37... g6
{[%clk 0:00:16.3]} 38. Kf1 {[%clk 0:00:09.9]} 38... Kf7 {[%clk 0:00:16.3]} 39.
h4 {[%clk 0:00:09.2]} 39... Bd7 {[%clk 0:00:16.7]} 40. b4 {[%clk 0:00:08.5]}
40... Bxa4 {[%clk 0:00:16.1]} 0-1

[Event "Late-Titled-Tuesday-Blitz-April-16-2024"]
[Site "Chess.com"]
[Date "2024.04.16"]
[Round "3"]
[White "zano2023"]
[Black "Bkmzzzzz"]
[Result "1/2-1/2"]
[WhiteElo "2159"]
[BlackElo "2374"]
[TimeControl "180+1"]
[EndTime "14:28:09 PDT"]
[Termination "Game drawn by stalemate"]

1. d4 {[%clk 0:03:00.9]} 1... d5 {[%clk 0:02:59]} 2. Nf3 {[%clk 0:02:59]} 2...
Nf6 {[%clk 0:02:58.4]} 3. Nbd2 {[%clk 0:02:59]} 3... Bf5 {[%clk 0:02:52.1]} 4.
e3 {[%clk 0:02:59.2]} 4... e6 {[%clk 0:02:51.8]} 5. c4 {[%clk 0:02:57.9]} 5...
dxc4 {[%clk 0:02:42]} 6. Bxc4 {[%clk 0:02:54]} 6... Be7 {[%clk 0:02:40.7]} 7.
Qb3 {[%clk 0:02:49.8]} 7... Qc8 {[%clk 0:02:22.1]} 8. O-O {[%clk 0:02:43.8]}
8... O-O {[%clk 0:02:21.5]} 9. Bd3 {[%clk 0:02:37.5]} 9... Bxd3 {[%clk
0:02:14.7]} 10. Qxd3 {[%clk 0:02:37]} 10... c5 {[%clk 0:02:15.2]} 11. e4 {[%clk
0:02:32.1]} 11... cxd4 {[%clk 0:02:10.5]} 12. Qxd4 {[%clk 0:02:31.3]} 12... Nc6
{[%clk 0:02:10.5]} 13. Qa4 {[%clk 0:02:19.3]} 13... a6 {[%clk 0:02:07.4]} 14. a3
{[%clk 0:02:17.9]} 14... b5 {[%clk 0:02:06.5]} 15. Qc2 {[%clk 0:02:12.1]} 15...
Rd8 {[%clk 0:02:03.7]} 16. b4 {[%clk 0:02:07.3]} 16... a5 {[%clk 0:01:58.1]} 17.
bxa5 {[%clk 0:01:52.8]} 17... Nxa5 {[%clk 0:01:54.8]} 18. Qxc8 {[%clk 0:01:51]}
18... Rdxc8 {[%clk 0:01:55.7]} 19. Bb2 {[%clk 0:01:50.4]} 19... Nc4 {[%clk
0:01:42]} 20. Rab1 {[%clk 0:01:39.1]} 20... Bxa3 {[%clk 0:01:36.8]} 21. Bxf6
{[%clk 0:01:35.8]} 21... gxf6 {[%clk 0:01:35.2]} 22. Rxb5 {[%clk 0:01:35.7]}
22... Bd6 {[%clk 0:01:24.9]} 23. Nb3 {[%clk 0:01:28.6]} 23... Rab8 {[%clk
0:01:10.7]} 24. Nbd4 {[%clk 0:01:20.2]} 24... Be5 {[%clk 0:01:08.5]} 25. Rfb1
{[%clk 0:01:15.7]} 25... Rxb5 {[%clk 0:01:00.8]} 26. Rxb5 {[%clk 0:01:16.6]}
26... Bxd4 {[%clk 0:00:57.1]} 27. Nxd4 {[%clk 0:01:13.9]} 27... Nd6 {[%clk
0:00:56.4]} 28. Rb1 {[%clk 0:01:02.9]} 28... Nxe4 {[%clk 0:00:56.5]} 29. f3
{[%clk 0:01:01.3]} 29... Nc3 {[%clk 0:00:56.1]} 30. Re1 {[%clk 0:00:59.2]} 30...
Nd5 {[%clk 0:00:52.9]} 31. Nb5 {[%clk 0:00:56.9]} 31... Rc5 {[%clk 0:00:47.6]}
32. Nd6 {[%clk 0:00:56.8]} 32... Rc6 {[%clk 0:00:47.8]} 33. Ne4 {[%clk
0:00:56.9]} 33... f5 {[%clk 0:00:45.3]} 34. Ng5 {[%clk 0:00:53]} 34... Kg7
{[%clk 0:00:41.6]} 35. g3 {[%clk 0:00:51.6]} 35... h6 {[%clk 0:00:35.8]} 36. Nh3
{[%clk 0:00:51.6]} 36... Kf6 {[%clk 0:00:36.5]} 37. f4 {[%clk 0:00:51.6]} 37...
Rc2 {[%clk 0:00:35.7]} 38. Nf2 {[%clk 0:00:50.1]} 38... Nc3 {[%clk 0:00:35.1]}
39. Kf1 {[%clk 0:00:48.3]} 39... Nd5 {[%clk 0:00:31]} 40. h3 {[%clk 0:00:47.2]}
40... Nb4 {[%clk 0:00:29]} 41. Re3 {[%clk 0:00:44.4]} 41... Nd5 {[%clk
0:00:25.6]} 42. Re1 {[%clk 0:00:44]} 42... Nc3 {[%clk 0:00:25.5]} 43. Re3 {[%clk
0:00:41.1]} 43... Rxf2+ {[%clk 0:00:25]} 44. Kxf2 {[%clk 0:00:40.6]} 44... Nd1+
{[%clk 0:00:25.6]} 45. Kf3 {[%clk 0:00:40.7]} 45... Nxe3 {[%clk 0:00:26.3]} 46.
Kxe3 {[%clk 0:00:41.6]} 46... Ke7 {[%clk 0:00:26.6]} 47. Kd4 {[%clk 0:00:41.6]}
47... Kd6 {[%clk 0:00:27.1]} 48. g4 {[%clk 0:00:39.6]} 48... f6 {[%clk 0:00:26]}
49. gxf5 {[%clk 0:00:38.9]} 49... exf5 {[%clk 0:00:19.3]} 50. Kc4 {[%clk
0:00:36.8]} 50... Ke6 {[%clk 0:00:19.4]} 51. Kd4 {[%clk 0:00:36.6]} 51... Kf7
{[%clk 0:00:19.6]} 52. Ke3 {[%clk 0:00:35.7]} 52... Kg6 {[%clk 0:00:20.2]} 53.
Kf3 {[%clk 0:00:36.1]} 53... Kh5 {[%clk 0:00:20.4]} 54. Kg3 {[%clk 0:00:35.5]}
54... Kg6 {[%clk 0:00:21.1]} 55. Kh4 {[%clk 0:00:35.2]} 55... Kf7 {[%clk
0:00:20.3]} 56. Kh5 {[%clk 0:00:35]} 56... Kg7 {[%clk 0:00:20.7]} 57. h4 {[%clk
0:00:30.9]} 57... Kh7 {[%clk 0:00:19.5]} 1/2-1/2

[Event "Late-Titled-Tuesday-Blitz-April-16-2024"]
[Site "Chess.com"]
[Date "2024.04.16"]
[Round "3"]
[White "nindjaxx8"]
[Black "ShahxaibKhan"]
[Result "1-0"]
[WhiteElo "2671"]
[BlackElo "2453"]
[TimeControl "180+1"]
[EndTime "14:28:11 PDT"]
[Termination "nindjaxx8 won on time"]

1. d4 {[%clk 0:03:00.9]} 1... Nf6 {[%clk 0:02:54.7]} 2. c4 {[%clk 0:03:00.3]}
2... e6 {[%clk 0:02:55.6]} 3. Nc3 {[%clk 0:02:59.7]} 3... Bb4 {[%clk 0:02:56.1]}
4. Qc2 {[%clk 0:02:59.5]} 4... Nc6 {[%clk 0:02:55.7]} 5. e3 {[%clk 0:02:58]}
5... O-O {[%clk 0:02:54.6]} 6. Nf3 {[%clk 0:02:58]} 6... d6 {[%clk 0:02:54.4]}
7. Bd2 {[%clk 0:02:57.9]} 7... e5 {[%clk 0:02:54.5]} 8. dxe5 {[%clk 0:02:57.9]}
8... dxe5 {[%clk 0:02:55.4]} 9. Rd1 {[%clk 0:02:57.8]} 9... Bxc3 {[%clk
0:02:54.1]} 10. Bxc3 {[%clk 0:02:58]} 10... Qe7 {[%clk 0:02:55]} 11. Be2 {[%clk
0:02:57.6]} 11... Bg4 {[%clk 0:02:53.2]} 12. O-O {[%clk 0:02:56.7]} 12... a5
{[%clk 0:02:52.8]} 13. a3 {[%clk 0:02:55.7]} 13... a4 {[%clk 0:02:50.7]} 14. Rd2
{[%clk 0:02:38.2]} 14... Rfd8 {[%clk 0:02:44]} 15. Rfd1 {[%clk 0:02:36.9]} 15...
Rxd2 {[%clk 0:02:20.2]} 16. Rxd2 {[%clk 0:02:37.8]} 16... Bh5 {[%clk 0:02:06.9]}
17. Nh4 {[%clk 0:01:31.7]} 17... Bxe2 {[%clk 0:02:01.5]} 18. Rxe2 {[%clk
0:01:30.6]} 18... Qc5 {[%clk 0:01:50.9]} 19. Be1 {[%clk 0:01:13.9]} 19... e4
{[%clk 0:01:49.9]} 20. Bc3 {[%clk 0:00:51.4]} 20... Qxc4 {[%clk 0:01:25.8]} 21.
Bxf6 {[%clk 0:00:50.5]} 21... Qxc2 {[%clk 0:01:26.4]} 22. Rxc2 {[%clk
0:00:51.3]} 22... gxf6 {[%clk 0:01:26.4]} 23. Nf5 {[%clk 0:00:50.7]} 23... Rd8
{[%clk 0:01:18.6]} 24. g4 {[%clk 0:00:48]} 24... h5 {[%clk 0:00:53.4]} 25. h3
{[%clk 0:00:46.3]} 25... hxg4 {[%clk 0:00:52.9]} 26. hxg4 {[%clk 0:00:46.5]}
26... Ne5 {[%clk 0:00:15.5]} 27. Rxc7 {[%clk 0:00:43.8]} 27... Nxg4 {[%clk
0:00:13.3]} 28. Rxb7 {[%clk 0:00:42.2]} 28... Rd1+ {[%clk 0:00:12.8]} 29. Kg2
{[%clk 0:00:42]} 29... Rd2 {[%clk 0:00:13.7]} 30. Kg3 {[%clk 0:00:40]} 30...
Nxf2 {[%clk 0:00:12.8]} 31. Nh6+ {[%clk 0:00:39.9]} 31... Kg7 {[%clk 0:00:12.3]}
32. Nxf7 {[%clk 0:00:40.1]} 32... Kg6 {[%clk 0:00:12.1]} 33. Kf4 {[%clk
0:00:33.7]} 33... f5 {[%clk 0:00:10.3]} 34. Ne5+ {[%clk 0:00:32.3]} 34... Kf6
{[%clk 0:00:07.4]} 35. Rb6+ {[%clk 0:00:32]} 35... Ke7 {[%clk 0:00:06.1]} 36.
Kxf5 {[%clk 0:00:32.6]} 36... Nd3 {[%clk 0:00:04.7]} 37. Kxe4 {[%clk 0:00:28]}
37... Nxb2 {[%clk 0:00:04.5]} 38. Rb4 {[%clk 0:00:25.9]} 38... Kd8 {[%clk
0:00:03.7]} 39. Nc6+ {[%clk 0:00:25.9]} 39... Kc7 {[%clk 0:00:03.4]} 40. Nd4
{[%clk 0:00:26.3]} 40... Rh2 {[%clk 0:00:02.8]} 41. Ke5 {[%clk 0:00:21.3]} 41...
Nd1 {[%clk 0:00:02.8]} 42. e4 {[%clk 0:00:20.2]} 1-0

[Event "Late-Titled-Tuesday-Blitz-April-16-2024"]
[Site "Chess.com"]
[Date "2024.04.16"]
[Round "3"]
[White "JaackCamel"]
[Black "Nick12772"]
[Result "1/2-1/2"]
[WhiteElo "2232"]
[BlackElo "2402"]
[TimeControl "180+1"]
[EndTime "14:28:11 PDT"]
[Termination "Game drawn by repetition"]

1. d4 {[%clk 0:03:00.9]} 1... Nf6 {[%clk 0:03:00.3]} 2. c4 {[%clk 0:03:00.2]}
2... g6 {[%clk 0:03:00.9]} 3. Nc3 {[%clk 0:02:59.7]} 3... d5 {[%clk 0:03:01.5]}
4. cxd5 {[%clk 0:02:59.5]} 4... Nxd5 {[%clk 0:03:02.4]} 5. e4 {[%clk 0:02:59.5]}
5... Nxc3 {[%clk 0:03:02.9]} 6. bxc3 {[%clk 0:02:59.3]} 6... Bg7 {[%clk
0:03:03.6]} 7. Nf3 {[%clk 0:02:59]} 7... c5 {[%clk 0:03:04.2]} 8. Be3 {[%clk
0:02:58]} 8... Nc6 {[%clk 0:03:04.2]} 9. Rc1 {[%clk 0:02:56]} 9... cxd4 {[%clk
0:03:03.2]} 10. cxd4 {[%clk 0:02:55.7]} 10... O-O {[%clk 0:03:03.9]} 11. Be2
{[%clk 0:02:53.3]} 11... Qa5+ {[%clk 0:03:03.9]} 12. Bd2 {[%clk 0:02:53.2]}
12... Qxa2 {[%clk 0:03:03.9]} 13. d5 {[%clk 0:02:45.8]} 13... Ne5 {[%clk
0:02:48.6]} 14. O-O {[%clk 0:02:35]} 14... Nxf3+ {[%clk 0:02:44.5]} 15. Bxf3
{[%clk 0:02:34.5]} 15... Qa6 {[%clk 0:02:30.4]} 16. Rc7 {[%clk 0:02:28.5]} 16...
Qd6 {[%clk 0:02:29.7]} 17. Qc2 {[%clk 0:02:00.7]} 17... Be5 {[%clk 0:02:28.3]}
18. Rc4 {[%clk 0:01:46.4]} 18... Bxh2+ {[%clk 0:02:27.7]} 19. Kh1 {[%clk
0:01:46.4]} 19... Bd7 {[%clk 0:02:23.9]} 20. Rc1 {[%clk 0:01:40.9]} 20... Rfc8
{[%clk 0:01:57.4]} 21. Bh6 {[%clk 0:01:32.1]} 21... Rxc4 {[%clk 0:01:47.6]} 22.
Qxc4 {[%clk 0:01:31.6]} 22... Bf4 {[%clk 0:01:48.1]} 23. Bxf4 {[%clk 0:01:26]}
23... Qxf4 {[%clk 0:01:49]} 24. Rb1 {[%clk 0:01:13.2]} 24... b6 {[%clk
0:01:35.2]} 25. Qb4 {[%clk 0:01:10.7]} 25... Qh4+ {[%clk 0:01:29.9]} 26. Kg1
{[%clk 0:01:10.3]} 26... Rc8 {[%clk 0:01:30.6]} 27. Re1 {[%clk 0:01:06.1]} 27...
Rc2 {[%clk 0:01:27.7]} 28. Qd4 {[%clk 0:01:04.6]} 28... Bg4 {[%clk 0:01:15.8]}
29. Bxg4 {[%clk 0:01:01.6]} 29... Qxg4 {[%clk 0:01:16.7]} 30. Qe3 {[%clk
0:00:51.4]} 30... Qc8 {[%clk 0:01:07.3]} 31. e5 {[%clk 0:00:50.8]} 31... Qc3
{[%clk 0:01:07.2]} 32. Qe4 {[%clk 0:00:47.6]} 32... Qc5 {[%clk 0:01:02.2]} 33.
Qf3 {[%clk 0:00:33.3]} 33... Qc3 {[%clk 0:00:38.2]} 34. Qe4 {[%clk 0:00:30]}
34... Qc4 {[%clk 0:00:33.2]} 35. Qf3 {[%clk 0:00:28.8]} 35... Rc1 {[%clk
0:00:27.2]} 36. Rxc1 {[%clk 0:00:22.3]} 36... Qxc1+ {[%clk 0:00:28.1]} 37. Kh2
{[%clk 0:00:22.5]} 37... Qc7 {[%clk 0:00:28.8]} 38. Qg3 {[%clk 0:00:19.6]} 38...
f6 {[%clk 0:00:24.8]} 39. f4 {[%clk 0:00:19.6]} 39... fxe5 {[%clk 0:00:22.5]}
40. fxe5 {[%clk 0:00:19.3]} 40... Qd7 {[%clk 0:00:20.6]} 41. Qb3 {[%clk
0:00:18.6]} 41... Qf5 {[%clk 0:00:17]} 42. d6+ {[%clk 0:00:17.1]} 42... Kg7
{[%clk 0:00:17.6]} 43. Qd5 {[%clk 0:00:15.4]} 43... Qf4+ {[%clk 0:00:15.4]} 44.
Kh1 {[%clk 0:00:13.9]} 44... Qh4+ {[%clk 0:00:13.2]} 45. Kg1 {[%clk 0:00:13.5]}
45... Qe1+ {[%clk 0:00:13.7]} 46. Kh2 {[%clk 0:00:13.6]} 46... Qh4+ {[%clk
0:00:13.5]} 47. Kg1 {[%clk 0:00:13.9]} 47... Qe1+ {[%clk 0:00:10.8]} 48. Kh2
{[%clk 0:00:14.1]} 48... Qh4+ {[%clk 0:00:11.5]} 49. Kg1 {[%clk 0:00:14.3]}
1/2-1/2

[Event "Late-Titled-Tuesday-Blitz-April-16-2024"]
[Site "Chess.com"]
[Date "2024.04.16"]
[Round "3"]
[White "Mariia89"]
[Black "stasOR4ik"]
[Result "0-1"]
[WhiteElo "2240"]
[BlackElo "2417"]
[TimeControl "180+1"]
[EndTime "14:28:12 PDT"]
[Termination "stasOR4ik won by resignation"]

1. d4 {[%clk 0:02:59.6]} 1... e6 {[%clk 0:02:57.2]} 2. Nf3 {[%clk 0:02:59.6]}
2... d5 {[%clk 0:02:57.4]} 3. c4 {[%clk 0:02:59.2]} 3... Nf6 {[%clk 0:02:58.1]}
4. a3 {[%clk 0:02:57.9]} 4... Nbd7 {[%clk 0:02:57.4]} 5. Nc3 {[%clk 0:02:58.1]}
5... c6 {[%clk 0:02:56.1]} 6. Bg5 {[%clk 0:02:58]} 6... h6 {[%clk 0:02:54.5]} 7.
Bh4 {[%clk 0:02:58.1]} 7... g5 {[%clk 0:02:53.8]} 8. Bg3 {[%clk 0:02:58.3]} 8...
dxc4 {[%clk 0:02:54.1]} 9. e4 {[%clk 0:02:56.7]} 9... b5 {[%clk 0:02:53.3]} 10.
Ne5 {[%clk 0:02:42.5]} 10... Bb7 {[%clk 0:02:48.3]} 11. h4 {[%clk 0:02:41.5]}
11... Nxe5 {[%clk 0:02:41.7]} 12. Bxe5 {[%clk 0:02:36.3]} 12... Bg7 {[%clk
0:02:40.7]} 13. hxg5 {[%clk 0:02:35.2]} 13... hxg5 {[%clk 0:02:41.6]} 14. Rxh8+
{[%clk 0:02:35.1]} 14... Bxh8 {[%clk 0:02:42.5]} 15. Qf3 {[%clk 0:02:21.6]}
15... Qe7 {[%clk 0:02:38.4]} 16. Qg3 {[%clk 0:02:15]} 16... Nh5 {[%clk 0:01:52]}
17. Qh2 {[%clk 0:02:03.2]} 17... Bxe5 {[%clk 0:01:51]} 18. Qxe5 {[%clk
0:01:56.8]} 18... O-O-O {[%clk 0:01:43]} 19. g3 {[%clk 0:01:55.7]} 19... f6
{[%clk 0:01:41]} 20. Qc5 {[%clk 0:01:52]} 20... Qxc5 {[%clk 0:01:31.4]} 21. dxc5
{[%clk 0:01:52.9]} 21... e5 {[%clk 0:01:29.2]} 22. Be2 {[%clk 0:01:46.7]} 22...
Ng7 {[%clk 0:01:28.9]} 23. Bg4+ {[%clk 0:01:46.7]} 23... Kc7 {[%clk 0:01:28.2]}
24. Ke2 {[%clk 0:01:43.4]} 24... Bc8 {[%clk 0:01:23.8]} 25. Bxc8 {[%clk
0:01:42.4]} 25... Kxc8 {[%clk 0:01:24.7]} 26. Rh1 {[%clk 0:01:42.4]} 26... Ne6
{[%clk 0:01:23.5]} 27. Rh7 {[%clk 0:01:32.3]} 27... Rd7 {[%clk 0:01:15.5]} 28.
Rh6 {[%clk 0:01:22.6]} 28... Rf7 {[%clk 0:01:11.7]} 29. Rh8+ {[%clk 0:00:58.1]}
29... Kb7 {[%clk 0:01:08.9]} 30. Nd1 {[%clk 0:00:49.7]} 30... Nxc5 {[%clk
0:01:07]} 31. Ne3 {[%clk 0:00:49.8]} 31... Nxe4 {[%clk 0:01:03.9]} 32. Nf5
{[%clk 0:00:49.9]} 32... Rd7 {[%clk 0:00:56.1]} 33. Ke3 {[%clk 0:00:47]} 33...
Nd6 {[%clk 0:00:50.5]} 34. g4 {[%clk 0:00:39.7]} 34... Nxf5+ {[%clk 0:00:45.7]}
35. gxf5 {[%clk 0:00:40.6]} 35... Rd3+ {[%clk 0:00:45.8]} 36. Ke4 {[%clk
0:00:38.6]} 36... Rd4+ {[%clk 0:00:35.8]} 37. Ke3 {[%clk 0:00:38.9]} 37... Rf4
{[%clk 0:00:35.7]} 38. Rh7+ {[%clk 0:00:39.1]} 38... Kb6 {[%clk 0:00:35.5]} 39.
f3 {[%clk 0:00:37.6]} 39... Rxf5 {[%clk 0:00:34.9]} 40. Re7 {[%clk 0:00:33.4]}
40... Rf4 {[%clk 0:00:34.3]} 41. Re6 {[%clk 0:00:33.3]} 41... a5 {[%clk
0:00:34.4]} 42. Ke2 {[%clk 0:00:31.6]} 42... Kc5 {[%clk 0:00:33.6]} 43. Ke3
{[%clk 0:00:32]} 43... b4 {[%clk 0:00:33.8]} 44. axb4+ {[%clk 0:00:30.3]} 44...
axb4 {[%clk 0:00:34.7]} 45. Ke2 {[%clk 0:00:27]} 45... c3 {[%clk 0:00:33.4]} 46.
bxc3 {[%clk 0:00:27.2]} 46... b3 {[%clk 0:00:32.6]} 47. Re8 {[%clk 0:00:25.8]}
47... Kc4 {[%clk 0:00:32.6]} 48. Rb8 {[%clk 0:00:25.8]} 48... Kxc3 {[%clk
0:00:31.7]} 49. Rb6 {[%clk 0:00:26.7]} 49... Rc4 {[%clk 0:00:30.8]} 50. Ke3
{[%clk 0:00:25.9]} 50... b2 {[%clk 0:00:29.9]} 51. Rb7 {[%clk 0:00:24]} 51...
Kc2 {[%clk 0:00:29.7]} 0-1

[Event "Late-Titled-Tuesday-Blitz-April-16-2024"]
[Site "Chess.com"]
[Date "2024.04.16"]
[Round "3"]
[White "TanitoluwaAps116"]
[Black "Polish_fighter3000"]
[Result "1-0"]
[WhiteElo "2802"]
[BlackElo "3120"]
[TimeControl "180+1"]
[EndTime "14:28:18 PDT"]
[Termination "TanitoluwaAps116 won on time"]

1. e4 {[%clk 0:02:44.8]} 1... c5 {[%clk 0:02:59.2]} 2. Nf3 {[%clk 0:02:41.4]}
2... Nc6 {[%clk 0:02:58.8]} 3. Bb5 {[%clk 0:02:40.5]} 3... g6 {[%clk 0:02:50.6]}
4. Bxc6 {[%clk 0:02:40.4]} 4... dxc6 {[%clk 0:02:49.6]} 5. d3 {[%clk 0:02:40.3]}
5... Bg7 {[%clk 0:02:46.5]} 6. h3 {[%clk 0:02:40.9]} 6... Nf6 {[%clk 0:02:40.9]}
7. Nc3 {[%clk 0:02:40.2]} 7... Qc7 {[%clk 0:02:32.7]} 8. Be3 {[%clk 0:02:34.9]}
8... Nd7 {[%clk 0:02:32.8]} 9. Qd2 {[%clk 0:02:34.4]} 9... h6 {[%clk 0:02:32.4]}
10. O-O {[%clk 0:02:34.5]} 10... b6 {[%clk 0:02:25]} 11. Rae1 {[%clk 0:02:30.7]}
11... e5 {[%clk 0:02:19.9]} 12. Nh2 {[%clk 0:02:27.3]} 12... Nf8 {[%clk
0:02:05.6]} 13. f4 {[%clk 0:02:25.6]} 13... exf4 {[%clk 0:02:06.1]} 14. Bxf4
{[%clk 0:02:25.8]} 14... Qd8 {[%clk 0:02:06.7]} 15. e5 {[%clk 0:02:20.1]} 15...
Bf5 {[%clk 0:01:50.6]} 16. g4 {[%clk 0:02:12]} 16... Be6 {[%clk 0:01:49.9]} 17.
Ne4 {[%clk 0:02:11.8]} 17... Qd4+ {[%clk 0:01:49.6]} 18. Kg2 {[%clk 0:02:04]}
18... Qxb2 {[%clk 0:01:26.9]} 19. Nd6+ {[%clk 0:01:48.3]} 19... Kd7 {[%clk
0:01:22.2]} 20. Bg3 {[%clk 0:01:27.3]} 20... Bd5+ {[%clk 0:00:59.8]} 21. Kg1
{[%clk 0:01:16.7]} 21... Rh7 {[%clk 0:00:40.5]} 22. Nxf7 {[%clk 0:01:06.4]}
22... Ne6 {[%clk 0:00:26.1]} 23. Rf2 {[%clk 0:00:59.5]} 23... Rf8 {[%clk
0:00:23.4]} 24. Ref1 {[%clk 0:00:53.5]} 24... h5 {[%clk 0:00:20.2]} 25. c4
{[%clk 0:00:45.1]} 25... Qxd2 {[%clk 0:00:14.8]} 26. Rxd2 {[%clk 0:00:46]} 26...
h4 {[%clk 0:00:08.5]} 27. cxd5 {[%clk 0:00:43.4]} 27... cxd5 {[%clk 0:00:05.1]}
28. Be1 {[%clk 0:00:41.7]} 28... Ke7 {[%clk 0:00:02.9]} 29. Rdf2 {[%clk
0:00:37.3]} 29... b5 {[%clk 0:00:03.1]} 30. g5 {[%clk 0:00:34.4]} 30... Kd7
{[%clk 0:00:01.6]} 31. Ng4 {[%clk 0:00:34.3]} 31... b4 {[%clk 0:00:01.7]} 32.
Nf6+ {[%clk 0:00:32]} 32... Bxf6 {[%clk 0:00:02.1]} 33. Rxf6 {[%clk 0:00:32.9]}
33... a5 {[%clk 0:00:02.5]} 34. Nd6 {[%clk 0:00:18]} 34... Rxf6 {[%clk
0:00:02.3]} 35. gxf6 {[%clk 0:00:18.1]} 35... Rh5 {[%clk 0:00:02.8]} 36. d4
{[%clk 0:00:09.5]} 36... cxd4 {[%clk 0:00:02.6]} 37. Nf7 {[%clk 0:00:06.9]}
37... d3 {[%clk 0:00:02.3]} 38. Bd2 {[%clk 0:00:07.1]} 38... d4 {[%clk
0:00:02.5]} 39. Nh6 {[%clk 0:00:06.2]} 39... Ke8 {[%clk 0:00:01.8]} 40. f7+
{[%clk 0:00:05]} 40... Ke7 {[%clk 0:00:02.3]} 41. Ng4 {[%clk 0:00:04.7]} 41...
Rf5 {[%clk 0:00:02]} 42. Re1 {[%clk 0:00:04]} 1-0